[Event "1000GM Spring Break Schev-D 2024"]
[Site "San Jose"]
[Date "2024.04.04"]
[Round "5.4"]
[White "Jin, Austin"]
[Black "Dominguez Aguilar, Guillermo"]
[Result "1/2-1/2"]
[ECO "B22"]
[WhiteElo "1966"]
[BlackElo "2285"]
[Annotator "RC"]
[PlyCount "136"]
[EventDate "2024.03.28"]
[EventType "schev"]
[EventCountry "USA"]
[SourceTitle "playchess.com"]
[Source "ChessBase"]
[SourceQuality "1"]
[TimeControl "5400+30"]

1. e4 {[%emt 0:00:09]} c5 {[%emt 0:00:22]} 2. c3 {[%emt 0:00:12]} Nf6 {[%emt 0:00:34]} 3. e5 {[%emt 0:00:05]} Nd5 {[%emt 0:00:10]} 4. d4 {[%emt 0:00:09]} cxd4 {[%emt 0:01:14]} 5. Nf3 {[%emt 0:00:28]} Nc6 {[%emt 0:00:09]} 6. cxd4 {[%emt 0:00:13]} d6 {[%emt 0:00:02]} 7. Bc4 {[%emt 0:00:17]} Nb6 {[%emt 0:00:37]} 8. Bb5 {[%emt 0:00:12]} Bd7 {[%emt 0:04:03]} 9. Nc3 {[%emt 0:04:31]} dxe5 {[%emt 0:01:03]} 10. dxe5 {[%emt 0:01:05]} a6 {[%emt 0:00:54]} 11. Bd3 {[%emt 0:01:11]} Bg4 {[%emt 0:00:33]} 12. Bf4 {[%emt 0:02:48]} e6 {[%emt 0:09:02]} 13. h3 {[%emt 0:04:57]} Bh5 {[%emt 0:02:11]} 14. g4 {[%emt 0:11:29]} Bg6 {[%emt 0:01:28]} 15. Bxg6 {[%emt 0:00:24]} hxg6 {[%emt 0:03:35]} 16. Qb3 {[%emt 0:02:51]} Qd3 {[%emt 0:03:37]} 17. Be3 {[%emt 0:05:43]} Nb4 {[%emt 0:04:36]} 18. Nd4 {[%emt 0:08:59]} Qc4 {[%emt 0:11:06]} 19. O-O-O {[%emt 0:08:51]} Rc8 {[%emt 0:03:23]} 20. Kb1 {[%emt 0:03:23]} N6d5 {[%emt 0:11:22]} 21. Nxd5 {[%emt 0:05:55]} Qxd5 {[%emt 0:01:20]} 22. Qxd5 {[%emt 0:01:28]} Nxd5 {[%emt 0:00:05]} 23. Bc1 {[%emt 0:05:05]} Rc4 {[%emt 0:03:26]} 24. f3 {[%emt 0:08:13]} Bc5 {[%emt 0:03:26]} 25. Nc2 {[%emt 0:01:37]} Bf2 {[%emt 0:00:57]} 26. Rd3 {[%emt 0:07:58]} b5 {[%emt 0:08:34]} 27. Ne3 {[%emt 0:02:36]} Bxe3 {[%emt 0:03:11]} 28. Bxe3 {[%emt 0:00:21]} Ke7 {[%emt 0:02:20]} 29. Bd2 {[%emt 0:03:33]} Rhc8 {[%emt 0:03:39]} 30. Rd1 {[%emt 0:01:06]} b4 {[%emt 0:00:59]} 31. Bg5+ {[%emt 0:02:24]} Ke8 {[%emt 0:01:14]} 32. Rd4 {[%emt 0:01:33]} Rxd4 {[%emt 0:02:13]} 33. Rxd4 {[%emt 0:00:05]} Kd7 {[%emt 0:00:20]} 34. Bd2 {[%emt 0:01:54]} a5 {[%emt 0:01:19]} 35. f4 {[%emt 0:00:12]} Rh8 {[%emt 0:00:42]} 36. Rd3 {[%emt 0:00:09]} Kc6 {[%emt 0:00:07]} 37. a3 {[%emt 0:01:19]} Kb5 {[%emt 0:00:21]} 38. axb4 {[%emt 0:00:25]} Kc4 {[%emt 0:00:56]} 39. Kc2 {[%emt 0:00:32]} axb4 {[%emt 0:00:51]} 40. b3+ {[%emt 0:01:19]} Kc5 {[%emt 0:00:13]} 41. Kb2 {[%emt 0:00:26]} Kc6 {[%emt 0:01:01]} 42. Kc2 {[%emt 0:00:14]} Kb5 {[%emt 0:02:53]} 43. Kb2 {[%emt 0:00:13]} Ra8 {[%emt 0:01:12]} 44. Rd4 {[%emt 0:00:48]} Ra7 {[%emt 0:02:19]} 45. Rd3 {[%emt 0:00:27]} Kc5 {[%emt 0:00:54]} 46. Kb1 {[%emt 0:02:50]} Ra8 {[%emt 0:01:26]} 47. Kb2 {[%emt 0:00:19]} f6 {[%emt 0:00:35]} 48. exf6 {[%emt 0:01:39]} gxf6 {[%emt 0:00:01]} 49. Be3+ {[%emt 0:01:17]} Kc6 {[%emt 0:00:39]} 50. Bd2 {[%emt 0:00:15]} Rh8 {[%emt 0:01:21]} 51. Rd4 {[%emt 0:01:00]} Rxh3 {[%emt 0:00:32]} 52. Bxb4 {[%emt 0:00:17]} Rh4 {[%emt 0:01:06]} 53. Re4 {[%emt 0:00:29]} Kd7 {[%emt 0:00:33]} 54. Bd2 {[%emt 0:00:46]} Rxg4 {[%emt 0:00:19]} 55. Ra4 {[%emt 0:00:15]} e5 {[%emt 0:01:23]} 56. fxe5 {[%emt 0:00:19]} Rxa4 {[%emt 0:00:15]} 57. bxa4 {[%emt 0:00:04]} fxe5 {[%emt 0:01:02]} 58. a5 {[%emt 0:00:17]} Nc7 {[%emt 0:00:19]} 59. Kc2 {[%emt 0:00:34]} Kc6 {[%emt 0:00:15]} 60. Kd3 {[%emt 0:00:21]} Kd5 {[%emt 0:00:10]} 61. Bg5 {[%emt 0:00:39]} Na6 {[%emt 0:01:10]} 62. Ke3 {[%emt 0:00:39]} Ke6 {[%emt 0:00:19]} 63. Bd8 {[%emt 0:00:32]} Kf5 {[%emt 0:00:29]} 64. Be7 {[%emt 0:00:40]} g5 {[%emt 0:00:10]} 65. Kf3 {[%emt 0:00:33]} e4+ {[%emt 0:00:18]} 66. Ke3 {[%emt 0:00:10]} g4 {[%emt 0:00:22]} 67. Bd6 {[%emt 0:00:07]} Ke6 {[%emt 0:00:20]} 68. Kxe4 {[%emt 0:00:20]} Kxd6 {[%emt 0:06:53]} 1/2-1/2

[Event "1000GM Spring Break Schev-D 2024"]
[Site "San Jose"]
[Date "2024.04.04"]
[Round "5.5"]
[White "Karthi, Jashith"]
[Black "Solis Castro, Angel Alejan"]
[Result "1/2-1/2"]
[ECO "A70"]
[WhiteElo "2075"]
[BlackElo "2066"]
[Annotator "RC"]
[PlyCount "107"]
[EventDate "2024.03.28"]
[EventType "schev"]
[EventCountry "USA"]
[SourceTitle "playchess.com"]
[Source "ChessBase"]
[SourceQuality "1"]
[TimeControl "5400+30"]

1. d4 {[%emt 0:00:04]} Nf6 {[%emt 0:00:55]} 2. c4 {[%emt 0:00:05]} e6 {[%emt 0:00:16]} 3. Nf3 c5 {[%emt 0:00:10]} 4. d5 {[%emt 0:00:08]} exd5 {[%emt 0:00:08]} 5. cxd5 {[%emt 0:00:05]} d6 {[%emt 0:00:03]} 6. Nc3 {[%emt 0:00:08]} g6 {[%emt 0:00:36]} 7. h3 {[%emt 0:00:04]} Bg7 {[%emt 0:00:17]} 8. e4 {[%emt 0:00:05]} O-O {[%emt 0:00:15]} 9. Be3 {[%emt 0:00:05]} Re8 {[%emt 0:02:09]} 10. Nd2 {[%emt 0:00:07]} b6 {[%emt 0:00:11]} 11. Be2 {[%emt 0:01:17]} Ba6 {[%emt 0:00:32]} 12. Bxa6 {[%emt 0:02:15]} Nxa6 {[%emt 0:00:02]} 13. O-O {[%emt 0:00:26]} Nc7 {[%emt 0:00:56]} 14. a4 {[%emt 0:01:35]} a6 {[%emt 0:01:01]} 15. Bf4 {[%emt 0:01:56]} Rb8 {[%emt 0:05:30]} 16. f3 {[%emt 0:11:38]} Nh5 {[%emt 0:03:39]} 17. Bh2 {[%emt 0:00:43]} b5 {[%emt 0:04:05]} 18. axb5 {[%emt 0:05:08]} axb5 {[%emt 0:00:02]} 19. f4 {[%emt 0:01:32]} c4 {[%emt 0:06:02]} 20. Qf3 {[%emt 0:04:14]} Rc8 {[%emt 0:04:08]} 21. e5 {[%emt 0:05:17]} dxe5 {[%emt 0:08:11]} 22. fxe5 {[%emt 0:00:20]} Bxe5 {[%emt 0:00:13]} 23. Qxf7+ {[%emt 0:01:53]} Kh8 {[%emt 0:00:10]} 24. Bxe5+ {[%emt 0:00:36]} Rxe5 {[%emt 0:00:02]} 25. Rae1 {[%emt 0:05:54]} Rxe1 {[%emt 0:08:18]} 26. Rxe1 {[%emt 0:00:02]} b4 {[%emt 0:00:08]} 27. Re7 {[%emt 0:09:25]} Qg8 {[%emt 0:00:10]} 28. Rxc7 {[%emt 0:00:48]} Qxf7 {[%emt 0:01:45]} 29. Rxf7 {[%emt 0:00:07]} bxc3 {[%emt 0:00:15]} 30. bxc3 {[%emt 0:00:05]} Rd8 {[%emt 0:00:30]} 31. Nxc4 {[%emt 0:49:58]} Rxd5 {[%emt 0:00:58]} 32. Rc7 {[%emt 0:00:00]} Nf4 {[%emt 0:00:40]} 33. Ne3 {[%emt 0:00:00]} Rd3 {[%emt 0:00:25]} 34. Ng4 {[%emt 0:00:00]} Rxc3 {[%emt 0:01:16]} 35. Rf7 {[%emt 0:00:00]} Nxh3+ {[%emt 0:12:40]} 36. gxh3 {[%emt 0:00:00]} Rxh3 {[%emt 0:00:02]} 37. Kg2 {[%emt 0:00:00]} Rh4 {[%emt 0:01:15]} 38. Kg3 {[%emt 0:00:00]} Rh1 {[%emt 0:00:16]} 39. Ra7 {[%emt 0:00:00]} Rg1+ {[%emt 0:02:23]} 40. Kf4 {[%emt 0:00:00]} Rf1+ {[%emt 0:00:09]} 41. Kg3 {[%emt 0:00:00]} Rg1+ {[%emt 0:02:41]} 42. Kf3 {[%emt 0:00:00]} Rf1+ {[%emt 0:00:17]} 43. Nf2 {[%emt 0:00:00]} Rb1 {[%emt 0:00:33]} 44. Ne4 {[%emt 0:00:00]} Rf1+ {[%emt 0:00:30]} 45. Ke3 {[%emt 0:00:00]} Kg8 {[%emt 0:00:30]} 46. Kd4 {[%emt 0:00:00]} Rf7 {[%emt 0:00:30]} 47. Ra8+ {[%emt 0:00:00]} Rf8 {[%emt 0:00:30]} 48. Ra6 {[%emt 0:00:00]} Kg7 {[%emt 0:00:30]} 49. Ke3 {[%emt 0:00:00]} Rf5 {[%emt 0:00:30]} 50. Nd6 {[%emt 0:00:00]} Rf8 {[%emt 0:00:30]} 51. Ne4 {[%emt 0:00:00]} Rf5 {[%emt 0:00:30]} 52. Ra2 {[%emt 0:00:00]} h5 {[%emt 0:00:30]} 53. Rb2 {[%emt 0:00:00]} h4 {[%emt 0:00:30]} 54. Rh2 {[%emt 0:00:00]} 1/2-1/2